fUSD/lending_fUSD_20260601
["ID","MTS","AMOUNT","RATE_DAILY","PERIOD"]
[423658922,1780283432000,-157.1,0.00016775,2]
[423658921,1780283432000,-470.77,0.00016488,2]
[423658920,1780283432000,-225.83,0.00016357,2]
[423658918,1780283432000,-200.0,0.00016273,2]
[423658904,1780283432000,-163.49,0.000137,2]
[423658912,1780283432000,-300.0,0.00016,2]
[423658924,1780283432000,-500.0,0.00016812,2]
[423658908,1780283432000,-250.0,0.00014023,2]
[423658905,1780283432000,-150.99,0.0001399,2]
[423658906,1780283432000,-250.0,0.00014,2]
[423658907,1780283432000,-482.97,0.00014,2]
[423658903,1780283432000,-2500.0,0.00013167,2]
[423658902,1780283432000,-658.0459502,0.00013036,2]
[423658900,1780283432000,-148.21413042,0.00011957,2]
[423658901,1780283432000,-195944.21198038,0.00011967,2]
[423658899,1780283432000,-757.90812535,0.00011957,2]
[423658898,1780283432000,-149.22303656,0.00010613,2]
[423658913,1780283432000,-2000.0,0.00016004,2]
[423658919,1780283432000,-200.0,0.00016275,2]
[423658949,1780283432000,-10249.22770354,0.00018341,2]
[423658917,1780283432000,-150.0,0.00016241,2]
[423658926,1780283432000,-5406.127169,0.0001699,2]
[423658970,1780283432000,-507.98591414,0.00018432,2]
[423658968,1780283432000,-507.98591414,0.00018432,2]
[423658966,1780283432000,-507.98591414,0.00018432,2]
[423658964,1780283432000,-507.98591414,0.00018432,2]
[423658958,1780283432000,-166.66,0.00018407,2]
[423658955,1780283432000,-225.83,0.00018401,2]
[423658962,1780283432000,-507.98591414,0.00018432,2]
[423658953,1780283432000,-4000.0,0.00018351,2]
[423658942,1780283432000,-157.1,0.00018246,2]
[423658951,1780283432000,-5561.03252961,0.00018341,2]
[423658945,1780283432000,-806.73057379,0.00018341,2]
[423658960,1780283432000,-507.98591414,0.00018432,2]
[423658937,1780283432000,-2000.0,0.00018005,2]
[423658923,1780283432000,-522.00711954,0.00016811,2]
[423658940,1780283432000,-166.66,0.00018028,2]
[423658928,1780283432000,-157.1,0.00017069,2]
[423658929,1780283432000,-500.0,0.00017085,2]
[423658930,1780283432000,-157.1,0.00017363,2]
[423658932,1780283432000,-60182.38688712,0.00017509,2]
[423658931,1780283432000,-4000.0,0.00017478,2]
[423658934,1780283432000,-27463.61,0.00017728,2]
[423658935,1780283432000,-4000.0,0.00017915,2]
[423658936,1780283432000,-157.1,0.00017952,2]
[423658938,1780283432000,-16426.09068441,0.00018025,2]
[423658933,1780283432000,-157.1,0.00017658,2]
[423659018,1780283433000,-507.98591414,0.00018432,2]
[423659020,1780283433000,-187.27655216,0.00018432,2]
[423659017,1780283433000,-507.98591414,0.00018432,2]
[423659014,1780283433000,-507.98591414,0.00018432,2]
[423659016,1780283433000,-507.98591414,0.00018432,2]
[423659009,1780283433000,-507.98591414,0.00018432,2]
[423659019,1780283433000,-507.98591414,0.00018432,2]
[423659021,1780283433000,-502.906055,0.00018432,2]
[423659015,1780283433000,-507.98591414,0.00018432,2]
[423659013,1780283433000,-507.98591414,0.00018432,2]
[423659024,1780283433000,-502.906055,0.00018432,2]
[423659023,1780283433000,-502.906055,0.00018432,2]
[423659022,1780283433000,-502.906055,0.00018432,2]
[423659035,1780283433000,-502.906055,0.00018432,2]
[423659041,1780283433000,-502.906055,0.00018432,2]
[423659037,1780283433000,-502.906055,0.00018432,2]
[423659026,1780283433000,-502.906055,0.00018432,2]
[423659038,1780283433000,-502.906055,0.00018432,2]
[423659039,1780283433000,-502.906055,0.00018432,2]
[423659028,1780283433000,-502.906055,0.00018432,2]
[423659029,1780283433000,-502.906055,0.00018432,2]
[423659031,1780283433000,-502.906055,0.00018432,2]
[423659030,1780283433000,-502.906055,0.00018432,2]
[423659032,1780283433000,-502.906055,0.00018432,2]
[423659034,1780283433000,-502.906055,0.00018432,2]
[423659007,1780283433000,-507.98591414,0.00018432,2]
[423659033,1780283433000,-502.906055,0.00018432,2]
[423659036,1780283433000,-502.906055,0.00018432,2]
[423659025,1780283433000,-502.906055,0.00018432,2]
[423659008,1780283433000,-507.98591414,0.00018432,2]
[423658991,1780283433000,-507.98591414,0.00018432,2]
[423659005,1780283433000,-507.98591414,0.00018432,2]
[423658980,1780283433000,-507.98591414,0.00018432,2]
[423658982,1780283433000,-507.98591414,0.00018432,2]
[423658987,1780283433000,-507.98591414,0.00018432,2]
[423658985,1780283433000,-507.98591414,0.00018432,2]
[423658986,1780283433000,-507.98591414,0.00018432,2]
[423658984,1780283433000,-507.98591414,0.00018432,2]
[423658978,1780283433000,-507.98591414,0.00018432,2]
[423658972,1780283433000,-507.98591414,0.00018432,2]
[423658977,1780283433000,-507.98591414,0.00018432,2]
[423658974,1780283433000,-507.98591414,0.00018432,2]
[423658989,1780283433000,-507.98591414,0.00018432,2]
[423658993,1780283433000,-507.98591414,0.00018432,2]
[423658998,1780283433000,-507.98591414,0.00018432,2]
[423658999,1780283433000,-507.98591414,0.00018432,2]
[423658992,1780283433000,-507.98591414,0.00018432,2]
[423658994,1780283433000,-507.98591414,0.00018432,2]
[423658995,1780283433000,-507.98591414,0.00018432,2]
[423658988,1780283433000,-507.98591414,0.00018432,2]
[423658990,1780283433000,-507.98591414,0.00018432,2]
[423658996,1780283433000,-507.98591414,0.00018432,2]
[423658997,1780283433000,-507.98591414,0.00018432,2]
[423659001,1780283433000,-507.98591414,0.00018432,2]
[423659012,1780283433000,-507.98591414,0.00018432,2]
[423659011,1780283433000,-507.98591414,0.00018432,2]
[423659000,1780283433000,-507.98591414,0.00018432,2]
[423659004,1780283433000,-507.98591414,0.00018432,2]
[423659003,1780283433000,-507.98591414,0.00018432,2]
[423659002,1780283433000,-507.98591414,0.00018432,2]
[423659010,1780283433000,-507.98591414,0.00018432,2]
[423659006,1780283433000,-507.98591414,0.00018432,2]
[423659051,1780283433000,-500.0,0.00018432,2]
[423659027,1780283433000,-502.906055,0.00018432,2]
[423659040,1780283433000,-502.906055,0.00018432,2]
[423659066,1780283433000,-502.906055,0.00018432,2]
[423659073,1780283433000,-500.0,0.00018432,2]
[423659080,1780283433000,-500.0,0.00018432,2]
[423659091,1780283433000,-500.0,0.00018432,2]
[423659090,1780283433000,-500.0,0.00018432,2]
[423659082,1780283433000,-368.23996968,0.00018432,2]
[423659081,1780283433000,-500.0,0.00018432,2]
[423659084,1780283433000,-500.0,0.00018432,2]
[423659085,1780283433000,-500.0,0.00018432,2]
[423659079,1780283433000,-500.0,0.00018432,2]
[423659086,1780283433000,-500.0,0.00018432,2]
[423659083,1780283433000,-500.0,0.00018432,2]
[423659087,1780283433000,-500.0,0.00018432,2]
[423659089,1780283433000,-500.0,0.00018432,2]
[423659088,1780283433000,-500.0,0.00018432,2]
[423659092,1780283433000,-500.0,0.00018432,2]
[423659094,1780283433000,-500.0,0.00018432,2]
[423659095,1780283433000,-500.0,0.00018432,2]
[423659102,1780283433000,-502.90605498,0.00018432,2]
[423659100,1780283433000,-500.0,0.00018432,2]
[423659098,1780283433000,-500.0,0.00018432,2]
[423659093,1780283433000,-500.0,0.00018432,2]
[423659097,1780283433000,-500.0,0.00018432,2]
[423659099,1780283433000,-500.0,0.00018432,2]
[423659103,1780283433000,-500.0,0.00018433,2]
[423659104,1780283433000,-500.0,0.00018433,2]
[423659101,1780283433000,-208.27537804,0.00018432,2]
[423659105,1780283433000,-500.0,0.00018433,2]
[423659052,1780283433000,-500.0,0.00018432,2]
[423659077,1780283433000,-500.0,0.00018432,2]
[423659076,1780283433000,-500.0,0.00018432,2]
[423659096,1780283433000,-500.0,0.00018432,2]
[423659075,1780283433000,-500.0,0.00018432,2]
[423659078,1780283433000,-500.0,0.00018432,2]
[423659045,1780283433000,-502.906055,0.00018432,2]
[423659044,1780283433000,-502.906055,0.00018432,2]
[423659049,1780283433000,-502.906055,0.00018432,2]
[423659050,1780283433000,-502.906055,0.00018432,2]
[423659046,1780283433000,-502.906055,0.00018432,2]
[423659043,1780283433000,-502.906055,0.00018432,2]
[423659047,1780283433000,-502.906055,0.00018432,2]
[423659048,1780283433000,-502.906055,0.00018432,2]
[423659042,1780283433000,-502.906055,0.00018432,2]
[423659054,1780283433000,-403.80957923,0.00018432,2]
[423659053,1780283433000,-500.0,0.00018432,2]
[423659055,1780283433000,-500.0,0.00018432,2]
[423659056,1780283433000,-500.0,0.00018432,2]
[423659064,1780283433000,-502.906055,0.00018432,2]
[423659058,1780283433000,-502.906055,0.00018432,2]
[423659072,1780283433000,-500.0,0.00018432,2]
[423659057,1780283433000,-439.52184623,0.00018432,2]
[423659074,1780283433000,-500.0,0.00018432,2]
[423659071,1780283433000,-500.0,0.00018432,2]
[423659068,1780283433000,-500.0,0.00018432,2]
[423659067,1780283433000,-500.0,0.00018432,2]
[423659069,1780283433000,-500.0,0.00018432,2]
[423659070,1780283433000,-500.0,0.00018432,2]
[423659062,1780283433000,-502.906055,0.00018432,2]
[423659063,1780283433000,-502.906055,0.00018432,2]
[423659060,1780283433000,-502.906055,0.00018432,2]
[423659061,1780283433000,-502.906055,0.00018432,2]
[423659065,1780283433000,-502.906055,0.00018432,2]
[423659059,1780283433000,-502.906055,0.00018432,2]
[423659114,1780283434000,-4297.31,0.00018433,2]
[423659111,1780283434000,-500.0,0.00018433,2]
[423659108,1780283434000,-500.0,0.00018433,2]
[423659109,1780283434000,-500.0,0.00018433,2]
[423659107,1780283434000,-500.0,0.00018433,2]
[423659113,1780283434000,-4297.31,0.00018433,2]
[423659117,1780283434000,-4297.31,0.00018433,2]
[423659116,1780283434000,-4297.31,0.00018433,2]
[423659106,1780283434000,-500.0,0.00018433,2]
[423659110,1780283434000,-500.0,0.00018433,2]
[423659115,1780283434000,-4297.31,0.00018433,2]
[423659112,1780283434000,-500.0,0.00018433,2]
[423659125,1780283434000,-289.385056,0.00018433,2]
[423659118,1780283434000,-4297.31,0.00018433,2]
[423659121,1780283434000,-4297.31,0.00018433,2]
[423659131,1780283434000,-944.41582422,0.00018433,2]
[423659129,1780283434000,-90605.38285244,0.00018433,2]
[423659127,1780283434000,-1500.0,0.00018433,2]
[423659130,1780283434000,-50222.03583879,0.00018433,2]
[423659119,1780283434000,-4297.31,0.00018433,2]
[423659126,1780283434000,-1500.0,0.00018433,2]
[423659122,1780283434000,-4297.31,0.00018433,2]
[423659128,1780283434000,-250.0,0.00018433,2]
[423659124,1780283434000,-321.538951,0.00018433,2]
[423659120,1780283434000,-4297.31,0.00018433,2]
[423659123,1780283434000,-4297.31,0.00018433,2]
[423659144,1780283438000,-166.66,0.00018787,2]
[423659162,1780283438000,-169.0,0.0002,2]
[423659151,1780283438000,-2049.0,0.00019227,5]
[423659143,1780283438000,-157.1,0.00018541,2]
[423659149,1780283438000,-166.66,0.00019166,2]
[423659148,1780283438000,-150.0,0.00018981,2]
[423659142,1780283438000,-1297.87657763,0.00018441,2]
[423659138,1780283438000,-472.225,0.00018433,2]
[423659146,1780283438000,-1050.0,0.0001887,2]
[423659145,1780283438000,-4000.0,0.00018788,2]
[423659141,1780283438000,-2350483.88029947,0.00018433,2]
[423659140,1780283438000,-736.66604106,0.00018433,2]
[423659139,1780283438000,-4614.50864661,0.00018433,2]
[423659137,1780283438000,-1920.88549741,0.00018433,2]
[423659153,1780283438000,-166.66,0.00019546,2]
[423659147,1780283438000,-450.0,0.0001887,7]
[423659150,1780283438000,-4000.0,0.00019225,2]
[423659168,1780283438000,-2000.0,0.00020005,2]
[423659158,1780283438000,-466.0,0.0002,2]
[423659161,1780283438000,-243.0,0.0002,2]
[423659170,1780283438000,-278.71837376,0.00020028,2]
[423659172,1780283438000,-225.83,0.00020445,2]
[423659171,1780283438000,-225.83,0.00020445,2]
[423659164,1780283438000,-260.0,0.0002,2]
[423659165,1780283438000,-516.0,0.0002,2]
[423659167,1780283438000,-5984.16,0.0002,2]
[423659166,1780283438000,-831.0,0.0002,2]
[423659169,1780283438000,-151.0,0.00020028,2]
[423659160,1780283438000,-1233.0,0.0002,2]
[423659157,1780283438000,-499.0,0.0002,2]
[423659159,1780283438000,-156.0,0.0002,2]
[423659152,1780283438000,-1000.0,0.00019256,2]
[423659156,1780283438000,-152.0,0.0002,2]
[423659155,1780283438000,-253.0,0.0002,2]
[423659163,1780283438000,-418.0,0.0002,2]
[423659154,1780283438000,-166.66,0.00019926,2]
[423659236,1780283439000,-216.28,0.00023288,2]
[423659238,1780283439000,-1000.0,0.000235,2]
[423659234,1780283439000,-260.0,0.00023,2]
[423659246,1780283439000,-499.0,0.00024,2]
[423659232,1780283439000,-418.0,0.00023,2]
[423659215,1780283439000,-225.83,0.00022491,2]
[423659212,1780283439000,-2000.0,0.00022006,2]
[423659227,1780283439000,-243.0,0.00023,2]
[423659210,1780283439000,-1735.31,0.00022,2]
[423659248,1780283439000,-466.0,0.00024,2]
[423659223,1780283439000,-466.0,0.00023,2]
[423659229,1780283439000,-169.0,0.00023,2]
[423659242,1780283439000,-5850.43,0.00023545,2]
[423659262,1780283439000,-7172.67,0.00024174,2]
[423659244,1780283439000,-253.0,0.00024,2]
[423659250,1780283439000,-1233.0,0.00024,2]
[423659240,1780283439000,-315.0,0.000235,2]
[423659254,1780283439000,-169.0,0.00024,2]
[423659256,1780283439000,-418.0,0.00024,2]
[423659258,1780283439000,-260.0,0.00024,2]
[423659260,1780283439000,-2000.0,0.00024007,2]
[423659208,1780283439000,-260.0,0.00022,2]
[423659264,1780283439000,-500.0,0.0002426,2]
[423659274,1780283439000,-4297.31,0.00024261,2]
[423659271,1780283439000,-4297.31,0.00024261,2]
[423659268,1780283439000,-4297.31,0.00024261,2]
[423659266,1780283439000,-215.82640677,0.00024261,2]
[423659278,1780283439000,-4297.31,0.00024261,2]
[423659252,1780283439000,-243.0,0.00024,2]
[423659219,1780283439000,-253.0,0.00023,2]
[423659192,1780283439000,-253.0,0.00022,2]
[423659225,1780283439000,-1233.0,0.00023,2]
[423659272,1780283439000,-4297.31,0.00024261,2]
[423659173,1780283439000,-225.83,0.00020446,2]
[423659174,1780283439000,-191.2,0.00020891,2]
[423659187,1780283439000,-502.67612113,0.00021329,2]
[423659186,1780283439000,-502.6761,0.00021328,2]
[423659176,1780283439000,-152.0,0.00021,2]
[423659175,1780283439000,-253.0,0.00021,2]
[423659177,1780283439000,-499.0,0.00021,2]
[423659182,1780283439000,-169.0,0.00021,2]
[423659180,1780283439000,-1233.0,0.00021,2]
[423659178,1780283439000,-466.0,0.00021,2]
[423659181,1780283439000,-243.0,0.00021,2]
[423659179,1780283439000,-156.0,0.00021,2]
[423659184,1780283439000,-260.0,0.00021,2]
[423659185,1780283439000,-297.06,0.000211,7]
[423659183,1780283439000,-418.0,0.00021,2]
[423659189,1780283439000,-309.0,0.000218,2]
[423659190,1780283439000,-5000.0,0.00021918,2]
[423659200,1780283439000,-1233.0,0.00022,2]
[423659188,1780283439000,-5925.89,0.00021773,2]
[423659191,1780283439000,-1297.87657761,0.00021934,2]
[423659202,1780283439000,-243.0,0.00022,2]
[423659193,1780283439000,-154.0,0.00022,2]
[423659204,1780283439000,-169.0,0.00022,2]
[423659206,1780283439000,-418.0,0.00022,2]
[423659194,1780283439000,-499.0,0.00022,2]
[423659196,1780283439000,-466.0,0.00022,2]
[423659198,1780283439000,-165.0,0.00022,2]
[423659217,1780283439000,-6068.0,0.0002255,2]
[423659221,1780283439000,-499.0,0.00023,2]
[423659276,1780283439000,-4297.31,0.00024261,2]
[423659350,1780283439000,-3160.0,0.00027137,2]
[423659282,1780283439000,-615.674166,0.00024261,3]
[423659361,1780283439000,-177.53,0.000274,7]
[423659359,1780283439000,-8107.25,0.00027397,10]
[423659352,1780283439000,-150.0,0.00027361,2]
[423659355,1780283439000,-1500.0,0.00027397,2]
[423659363,1780283439000,-399.52,0.000274,14]
[423659365,1780283439000,-501.0,0.00027693,2]
[423659367,1780283439000,-166.66,0.00028075,2]
[423659369,1780283439000,-501.0,0.0002825,3]
[423659373,1780283439000,-1357.0,0.00028392,2]
[423659379,1780283439000,-1273.0,0.00028392,2]
[423659377,1780283439000,-929.0,0.00028392,2]
[423659375,1780283439000,-3551.0,0.00028392,2]
[423659371,1780283439000,-2305.8186173,0.00028342,2]
[423659357,1780283439000,-300.0,0.00027397,2]
[423659390,1780283439000,-156.68478677,0.00028466,2]
[423659383,1780283439000,-159.242573,0.00028466,2]
[423659381,1780283439000,-525.0,0.00028392,2]
[423659387,1780283439000,-162.59460691,0.00028466,2]
[423659394,1780283439000,-156.98274639,0.00028466,2]
[423659392,1780283439000,-162.78196281,0.00028466,2]
[423659396,1780283439000,-171.44300926,0.00028466,2]
[423659408,1780283439000,-501.0,0.00028806,3]
[423659402,1780283439000,-6068.0,0.0002855,2]
[423659400,1780283439000,-172.60922042,0.00028471,2]
[423659284,1780283439000,-150.0,0.00024361,2]
[423659398,1780283439000,-164.64538643,0.00028471,2]
[423659410,1780283439000,-208.12,0.00028827,30]
[423659406,1780283439000,-367.94,0.00028797,7]
[423659385,1780283439000,-166.75782806,0.00028466,2]
[423659346,1780283439000,-632.0,0.00027137,2]
[423659404,1780283439000,-367.94,0.0002863,30]
[423659342,1780283439000,-501.0,0.00027137,2]
[423659348,1780283439000,-632.0,0.00027137,2]
[423659280,1780283439000,-1500000.0,0.00024261,2]
[423659286,1780283439000,-200.0,0.00024361,2]
[423659290,1780283439000,-225.83,0.00024535,2]
[423659292,1780283439000,-2305.8186173,0.00024656,2]
[423659297,1780283439000,-257.0,0.00025,2]
[423659294,1780283439000,-1000.0,0.00024658,2]
[423659301,1780283439000,-467.0,0.00025,2]
[423659307,1780283439000,-258.0,0.00025,2]
[423659304,1780283439000,-1250.0,0.00025,2]
[423659310,1780283439000,-184.0,0.00025,2]
[423659299,1780283439000,-515.0,0.00025,2]
[423659313,1780283439000,-437.0,0.00025,2]
[423659316,1780283439000,-261.0,0.00025,2]
[423659318,1780283439000,-217.0,0.00025003,2]
[423659288,1780283439000,-277.0,0.00024361,2]
[423659320,1780283439000,-174.113,0.00025003,2]
[423659330,1780283439000,-1273.0,0.00025392,2]
[423659344,1780283439000,-632.0,0.00027137,2]
[423659338,1780283439000,-216.29,0.00026027,31]
[423659328,1780283439000,-929.0,0.00025392,2]
[423659340,1780283439000,-200.0,0.00026413,2]
[423659333,1780283439000,-6068.0,0.0002555,2]
[423659336,1780283439000,-500.0,0.00026,2]
[423659334,1780283439000,-7172.67,0.00025786,2]
[423659324,1780283439000,-1357.0,0.00025392,2]
[423659322,1780283439000,-251.049,0.00025392,2]
[423659331,1780283439000,-525.0,0.00025392,2]
[423659332,1780283439000,-1297.87657761,0.00025427,2]
[423659326,1780283439000,-3551.0,0.00025392,2]
[423659496,1780283440000,-157.33,0.00029391,2]
[423659500,1780283440000,-367.94,0.00029467,2]
[423659498,1780283440000,-195.36,0.00029395,7]
[423659511,1780283440000,-150.0,0.00029534,2]
[423659490,1780283440000,-187.28,0.00029381,2]
[423659486,1780283440000,-501.0,0.00029363,4]
[423659482,1780283440000,-152.0,0.00029311,7]
[423659488,1780283440000,-208.12,0.00029373,2]
[423659513,1780283440000,-195.39,0.00029547,2]
[423659484,1780283440000,-195.36,0.00029315,2]
[423659494,1780283440000,-195.39,0.00029388,7]
[423659502,1780283440000,-195.39,0.00029468,30]
[423659517,1780283440000,-4297.31,0.00029588,2]
[423659504,1780283440000,-195.36,0.00029474,30]
[423659492,1780283440000,-157.34,0.00029383,2]
[423659509,1780283440000,-2000.0,0.000295,43]
[423659506,1780283440000,-2000.0,0.000295,64]
[423659515,1780283440000,-195.36,0.00029553,2]
[423659519,1780283440000,-195.39,0.00029627,7]
[423659521,1780283440000,-195.36,0.00029632,7]
[423659527,1780283440000,-187.28,0.00029653,30]
[423659529,1780283440000,-157.34,0.00029655,30]
[423659525,1780283440000,-208.12,0.00029646,30]
[423659523,1780283440000,-367.94,0.00029634,30]
[423659481,1780283440000,-195.39,0.00029308,2]
[423659531,1780283440000,-157.33,0.00029661,30]
[423659475,1780283440000,-195.39,0.00029228,30]
[423659445,1780283440000,-195.39,0.00028988,30]
[423659471,1780283440000,-195.39,0.00029148,7]
[423659533,1780283440000,-1000.0,0.000297,7]
[423659415,1780283440000,-187.28,0.00028838,30]
[423659412,1780283440000,-195.39,0.00028829,2]
[423659417,1780283440000,-157.34,0.0002884,30]
[423659419,1780283440000,-195.36,0.0002884,2]
[423659421,1780283440000,-157.33,0.0002885,30]
[423659423,1780283440000,-806.73057378,0.00028871,2]
[423659434,1780283440000,-600.0,0.00028957,2]
[423659425,1780283440000,-5561.0325296,0.00028871,2]
[423659427,1780283440000,-195.39,0.00028908,7]
[423659431,1780283440000,-1297.87657761,0.00028921,2]
[423659429,1780283440000,-195.36,0.00028919,7]
[423659473,1780283440000,-195.36,0.00029157,7]
[423659442,1780283440000,-367.94,0.00028964,2]
[423659451,1780283440000,-202.47,0.00029,30]
[423659449,1780283440000,-399.52,0.00029,14]
[423659455,1780283440000,-195.39,0.00029068,2]
[423659460,1780283440000,-208.12,0.000291,7]
[423659457,1780283440000,-195.36,0.00029077,2]
[423659466,1780283440000,-157.33,0.0002912,7]
[423659453,1780283440000,-166.66,0.00029002,2]
[423659462,1780283440000,-187.28,0.00029109,7]
[423659464,1780283440000,-157.34,0.00029111,7]
[423659477,1780283440000,-195.36,0.00029236,30]
[423659479,1780283440000,-367.94,0.00029299,7]
[423659468,1780283440000,-367.94,0.00029132,30]
[423659447,1780283440000,-195.36,0.00028998,30]
[423659537,1780283440000,-195.36,0.00029712,30]
[423659600,1780283440000,-195.39,0.00029867,7]
[423659540,1780283440000,-152.0,0.0002975,30]
[423659596,1780283440000,-196.52692483,0.00029804,2]
[423659594,1780283440000,-345.21844083,0.00029804,2]
[423659602,1780283440000,-195.36,0.0002987,7]
[423659641,1780283440000,-195.36,0.00030188,30]
[423659614,1780283440000,-157.34,0.00029926,7]
[423659616,1780283440000,-166.66,0.00029929,2]
[423659618,1780283440000,-157.33,0.00029932,7]
[423659620,1780283440000,-195.39,0.00029947,30]
[423659628,1780283440000,-195.39,0.00030027,2]
[423659629,1780283440000,-195.36,0.00030029,2]
[423659622,1780283440000,-195.36,0.0002995,30]
[423659630,1780283440000,-399.52,0.000301,14]
[423659631,1780283440000,-195.39,0.00030107,7]
[423659624,1780283440000,-367.94,0.00029969,2]
[423659632,1780283440000,-195.36,0.00030108,7]
[423659638,1780283440000,-14593.2102956,0.00030137,25]
[423659635,1780283440000,-2000.0,0.00030136,25]
[423659636,1780283440000,-200.0,0.00030137,2]
[423659633,1780283440000,-367.96,0.00030136,30]
[423659640,1780283440000,-195.39,0.00030186,30]
[423659642,1780283440000,-486.18,0.000302,2]
[423659644,1780283440000,-195.39,0.00030266,2]
[423659646,1780283440000,-195.36,0.00030267,2]
[423659648,1780283440000,-195.45,0.00030346,7]
[423659535,1780283440000,-195.39,0.00029707,30]
[423659598,1780283440000,-222.53663113,0.00029804,2]
[423659612,1780283440000,-187.28,0.00029925,7]
[423659626,1780283440000,-185.17,0.0003,2]
[423659592,1780283440000,-329.29077285,0.00029804,2]
[423659542,1780283440000,-499.0,0.0002975,30]
[423659609,1780283440000,-501.0,0.00029919,5]
[423659555,1780283440000,-169.0,0.0002975,30]
[423659544,1780283440000,-466.0,0.0002975,30]
[423659557,1780283440000,-418.0,0.0002975,30]
[423659559,1780283440000,-260.0,0.0002975,30]
[423659561,1780283440000,-253.0,0.00029766,30]
[423659563,1780283440000,-200.0,0.00029769,2]
[423659549,1780283440000,-161.0,0.0002975,30]
[423659553,1780283440000,-243.0,0.0002975,30]
[423659565,1780283440000,-195.39,0.00029787,2]
[423659551,1780283440000,-1233.0,0.0002975,30]
[423659579,1780283440000,-313.36957354,0.000298,2]
[423659546,1780283440000,-156.0,0.0002975,30]
[423659573,1780283440000,-212.38626908,0.00029799,2]
[423659583,1780283440000,-313.96549279,0.000298,2]
[423659569,1780283440000,-318.485146,0.00029799,2]
[423659567,1780283440000,-195.36,0.00029791,2]
[423659585,1780283440000,-342.88601852,0.000298,2]
[423659575,1780283440000,-333.51565611,0.000298,2]
[423659577,1780283440000,-325.18921381,0.000298,2]
[423659571,1780283440000,-154.05139088,0.00029799,2]
[423659590,1780283440000,-173.12783326,0.00029804,2]
[423659588,1780283440000,-367.94,0.00029802,7]
[423659581,1780283440000,-325.56392562,0.000298,2]
[423659604,1780283440000,-175.6077,0.00029918,7]
[423659607,1780283440000,-208.12,0.00029919,7]
[423659686,1780283441000,-1233.0,0.0003075,30]
[423659695,1780283441000,-501.0,0.00031032,6]
[423659689,1780283441000,-418.0,0.0003075,30]
[423659691,1780283441000,-253.0,0.00030766,30]
[423659694,1780283441000,-150.0,0.00031011,2]
[423659697,1780283441000,-200.0,0.00031096,2]
[423659688,1780283441000,-169.0,0.0003075,30]
[423659692,1780283441000,-166.66,0.00030855,2]
[423659690,1780283441000,-260.0,0.0003075,30]
[423659687,1780283441000,-243.0,0.0003075,30]
[423659698,1780283441000,-1016.94,0.00031156,30]
[423659693,1780283441000,-1016.94,0.00031,30]
[423659696,1780283441000,-1016.94,0.00031078,30]
[423659711,1780283441000,-303.50202609,0.00031281,2]
[423659709,1780283441000,-388.92477038,0.00031281,2]
[423659708,1780283441000,-636.970292,0.00031281,2]
[423659702,1780283441000,-2000.0,0.00031254,2]
[423659704,1780283441000,-2000.0,0.00031254,2]
[423659710,1780283441000,-183.38933712,0.00031281,2]
[423659703,1780283441000,-2000.0,0.00031254,2]
[423659705,1780283441000,-2000.0,0.00031254,2]